bitfinex/quotes_ETHUSD_20250608
["timestamp","ask_amount","ask_price","bid_price","bid_amount"]
[1749363825489,3.30362487,2518.4,2518.3,10.37293277]
[1749363825688,2.93184435,2518.4,2518.3,10.37293277]
[1749363825886,3.30360891,2518.4,2518.3,10.37293277]
[1749363826088,3.30360249,2518.4,2518.3,10.37293277]
[1749363826394,2.93184435,2518.4,2518.3,10.37293277]
[1749363835600,4.56484435,2518.4,2518.3,10.37293277]
[1749363835801,3.77534435,2518.4,2518.3,10.37293277]
[1749363838023,4.14719424,2518.4,2518.3,10.37293277]
[1749363838186,4.14719658,2518.4,2518.3,10.37293277]
[1749363838388,4.14719712,2518.4,2518.3,10.37293277]
[1749363839115,4.14719482,2518.4,2518.3,10.37293277]
[1749363839316,6.14777618,2518.4,2518.3,3.97093277]
[1749363839526,0.8256,2518.3,2518.2,3.97109046]
[1749363839706,1.77804986,2518.3,2518.2,10.37009046]
[1749363840107,2.96800002,2518.3,2518.2,10.37009046]
[1749363840814,1.77804986,2518.3,2518.2,10.37009046]
[1749363841013,3.82409555,2518.3,2518.2,10.37009046]
[1749363841520,2.63414539,2518.3,2518.2,10.37009046]
[1749363842026,3.82409555,2518.3,2518.2,10.37009046]
[1749363842694,2.63414539,2518.3,2518.2,10.37009046]
[1749363843202,3.82409555,2518.3,2518.2,10.37009046]
[1749363844025,2.99849555,2518.3,2518.2,10.37009046]
[1749363844227,2.14240002,2518.3,2518.2,10.37009046]
[1749363845436,4.00543183,2518.4,2518.3,3.97093277]
[1749363845616,5.32976845,2518.4,2518.3,3.97093277]
[1749363845929,5.32976631,2518.4,2518.3,3.97093277]
[1749363846297,5.32983569,2518.4,2518.3,3.97093277]
[1749363846495,5.32983381,2518.4,2518.3,3.97093277]
[1749363846695,4.95775758,2518.4,2518.3,3.97093277]
[1749363847225,5.32983491,2518.4,2518.3,3.97093277]
[1749363847938,5.32983491,2518.4,2517.8,19.9716675]
[1749363847939,0.7689,2518.3,2517.8,19.9716675]
[1749363848104,1.30188349,2518.3,2518.2,3.97109046]
[1749363848437,2.25466014,2518.3,2518.2,10.37009046]
[1749363848598,2.62685217,2518.3,2518.2,10.37009046]
[1749363848803,2.62685581,2518.3,2518.2,10.37009046]
[1749363849651,2.25466014,2518.3,2518.2,3.97109046]
[1749363849823,2.62699951,2518.3,2518.2,10.37009046]
[1749363849995,2.62699739,2518.3,2518.2,10.37009046]
[1749363850343,2.25466014,2518.3,2518.2,10.37009046]
[1749363850499,2.62700464,2518.3,2518.2,10.37009046]
[1749363850700,4.21452596,2518.3,2518.2,10.37009046]
[1749363850901,3.84218361,2518.3,2518.2,10.37009046]
[1749363851200,2.62698849,2518.3,2518.2,10.37009046]
[1749363851707,3.84218361,2518.3,2518.2,10.37009046]
[1749363852331,4.21454244,2518.3,2518.2,3.97109046]
[1749363852534,4.21454244,2518.3,2518.2,10.37009046]
[1749363853036,4.21448497,2518.3,2518.2,10.37009046]
[1749363853230,4.21448582,2518.3,2518.2,10.37009046]
[1749363853419,3.84218361,2518.3,2518.2,10.37009046]
[1749363853732,3.84218361,2518.3,2518.2,6.399]
[1749363853896,0.55,2518.2,2517.7,0.8108]
[1749363854097,1.98928862,2518.0,2517.9,3.9715636]
[1749363854294,1.75057665,2518.0,2517.9,3.9715636]
[1749363854529,2.12277017,2518.0,2517.9,3.9715636]
[1749363855032,1.75057665,2518.0,2517.9,3.9715636]
[1749363855335,2.12277704,2518.0,2517.9,3.9715636]
[1749363855521,1.75057665,2518.0,2517.9,3.9715636]
[1749363855839,1.75057665,2518.0,2517.9,10.3705636]
[1749363856040,2.12277634,2518.0,2517.9,10.3705636]
[1749363856539,2.12261254,2518.0,2517.9,10.3705636]
[1749363856711,3.3131358,2518.0,2517.9,10.3705636]
[1749363856914,1.75057665,2518.0,2517.9,10.3705636]
[1749363857114,2.94109532,2518.0,2517.9,10.3705636]
[1749363857609,2.12261254,2518.0,2517.9,10.3705636]
[1749363857825,3.31293542,2518.0,2517.9,10.3705636]
[1749363858331,3.31284927,2518.0,2517.9,10.3705636]
[1749363858543,2.94089953,2518.0,2517.9,10.3705636]
[1749363859038,3.31285146,2518.0,2517.9,10.3705636]
[1749363859244,2.94089953,2518.0,2517.9,10.3705636]
[1749363859404,3.31283429,2518.0,2517.9,3.9715636]
[1749363859616,3.31283429,2518.0,2517.9,10.3705636]
[1749363859839,3.31283477,2518.0,2517.9,6.399]
[1749363860040,3.48593535,2518.0,2517.9,10.3705636]
[1749363860931,3.85786391,2518.0,2517.9,3.9715636]
[1749363861253,3.48593535,2518.0,2517.9,10.3705636]
[1749363861648,3.85777829,2518.0,2517.9,10.3705636]
[1749363861856,3.48593535,2518.0,2517.9,10.3705636]
[1749363862455,3.48593535,2518.0,2517.9,3.9715636]
[1749363862614,3.48593535,2518.0,2517.9,10.3705636]
[1749363864731,1.98812288,2518.0,2517.9,10.3705636]
[1749363864942,2.93922032,2518.0,2517.9,10.3705636]
[1749363866944,3.31098931,2518.0,2517.9,10.3705636]
[1749363867150,2.93922032,2518.0,2517.9,10.3705636]
[1749363867349,2.93922032,2518.0,2517.9,3.9715636]
[1749363867573,0.55,2517.9,2517.0,3.97298371]
[1749363867778,0.55,2517.7,2517.5,3.97206943]
[1749363868078,0.55,2517.7,2517.6,10.37203686]
[1749363868372,1.50179876,2517.7,2517.6,10.37203686]
[1749363868862,0.95179876,2517.7,2517.6,10.37203686]
[1749363870626,2.58379876,2517.7,2517.6,10.37203686]
[1749363873558,19.75279876,2517.7,2517.6,10.37203686]
[1749363889062,18.12079876,2517.7,2517.6,11.19603686]
[1749363889293,19.75279876,2517.7,2517.6,11.19603686]
[1749363891888,2.58379876,2517.7,2517.6,11.19603686]
[1749363902023,2.58379876,2517.7,2517.6,10.37203686]
[1749363904359,2.58379876,2517.7,2517.6,3.97203686]
[1749363904559,2.58488386,2517.7,2517.6,10.37203686]
[1749363918202,2.58488386,2517.7,2517.6,11.14933686]
[1749363919037,2.58488386,2517.7,2517.6,27.14933686]
[1749363919814,1.632,2517.7,2517.6,27.14933686]
[1749363922016,17.169,2518.0,2517.9,19.9715636]
[1749363922350,18.801,2518.0,2517.9,30.42605718]
[1749363925961,18.8,2518.0,2517.9,30.42605718]
[1749363937734,18.8,2518.0,2517.9,19.9715636]
[1749363938041,18.8,2518.0,2517.9,26.3685636]
[1749363938384,17.169,2518.0,2517.9,26.3685636]
[1749363938549,18.8,2518.0,2517.9,26.3685636]
[1749363939381,18.8,2518.0,2517.9,19.9715636]
[1749363939582,19.6037,2518.0,2517.9,3.9715636]
[1749363939886,21.56407,2518.0,2517.9,3.9715636]
[1749363940187,22.51389228,2518.0,2517.9,10.3685636]
[1749363942172,22.51389228,2518.0,2517.9,3.9715636]
[1749363942478,22.51389228,2518.0,2517.9,10.3695636]
[1749363946090,22.51389228,2518.0,2517.9,3.9715636]
[1749363946285,22.51389228,2518.0,2517.9,10.3695636]
[1749363951602,20.55352228,2518.0,2517.9,10.3695636]
[1749363951917,18.8,2518.0,2517.9,14.88233564]
[1749363957407,18.8,2518.0,2517.9,10.3695636]
[1749363959617,18.8,2518.0,2517.9,26.3695636]
[1749363964725,1.631,2518.0,2517.9,26.3695636]
[1749363966292,1.631,2518.0,2517.9,30.88233564]
[1749363967023,18.35289457,2518.4,2518.2,3.97109046]
[1749363967227,18.35289457,2518.4,2518.3,10.36893277]
[1749363967390,19.74771813,2518.4,2518.3,10.36893277]
[1749363968103,19.74771813,2518.4,2518.3,3.97093277]
[1749363968319,22.6860794,2518.4,2518.3,10.36893277]
[1749363968704,22.6860794,2518.4,2518.3,3.97093277]
[1749363969004,0.7666,2518.3,2518.2,3.97098456]
[1749363969221,1.71831813,2518.3,2518.2,10.36798456]
[1749363971349,0.7666,2518.2,2518.0,3.97138221]
[1749363971503,4.34436868,2518.2,2518.1,6.397]
[1749363971704,5.29671165,2518.2,2518.1,6.397]
[1749363972031,4.10634037,2518.2,2518.1,6.397]
[1749363972443,4.10634037,2518.2,2518.1,10.36824816]
[1749363972948,4.10634037,2518.2,2518.1,6.397]
[1749363973249,0.7795,2518.0,2517.8,3.97170361]
[1749363973458,2.63291637,2518.0,2517.9,10.3685636]
[1749363973618,3.58527829,2518.0,2517.9,6.397]
[1749363973818,0.7795,2517.9,2517.0,5.28857204]
[1749363974013,0.7795,2517.9,2516.6,3.97356328]
[1749363974014,0.7795,2517.7,2517.3,3.97243345]
[1749363974216,0.7795,2517.7,2517.4,10.36935225]
[1749363974217,0.7795,2517.5,2517.4,10.36935225]
[1749363974442,1.73186192,2517.5,2517.4,10.36935225]
[1749363981053,0.7795,2517.5,2517.4,10.36935225]
[1749363981449,1.73000358,2517.5,2517.4,10.36935225]
[1749363981646,0.7795,2517.5,2517.4,10.36935225]
[1749363981946,3.36087063,2517.5,2517.4,10.36935225]
[1749363982267,1.19051416,2517.9,2517.7,3.97179036]
[1749363982268,0.8322,2517.8,2517.7,3.97179036]
[1749363982449,3.41351077,2517.8,2517.7,10.37079036]
[1749363982944,2.58131077,2517.8,2517.7,10.37079036]
[1749363985025,1.631,2517.8,2517.7,10.37079036]
[1749363985817,1.3822,2518.1,2518.0,3.97140587]
[1749363986017,3.67033071,2518.1,2518.0,10.37040587]
[1749363986216,3.4133437,2518.1,2518.0,10.37040587]
[1749363991131,3.9633437,2518.1,2518.0,6.399]
[1749363991519,3.9633437,2518.1,2518.0,10.37040587]
[1749363994456,3.9633437,2518.1,2518.0,6.399]
[1749363994623,4.51557173,2518.1,2518.0,6.399]
[1749363995528,5.70324183,2518.1,2518.0,6.399]
[1749363995762,5.70324183,2518.1,2518.0,10.37040587]
[1749363995964,5.70324183,2518.1,2518.0,6.399]
[1749363996170,4.51557173,2518.1,2518.0,6.399]
[1749363996464,4.51557173,2518.1,2518.0,6.398]
[1749363996970,5.70324183,2518.1,2518.0,6.398]
[1749364000434,5.70324183,2518.1,2518.0,10.36940587]
[1749364000638,4.51557173,2518.1,2518.0,6.398]
[1749364000958,5.70520851,2518.1,2518.0,6.398]
[1749364001530,4.51557173,2518.1,2518.0,6.398]
[1749364002173,5.70535715,2518.1,2518.0,6.398]
[1749364002380,4.51557173,2518.1,2518.0,6.398]
[1749364002672,4.51557173,2518.1,2518.0,10.36940587]
[1749364003648,5.70541785,2518.1,2518.0,10.36940587]
[1749364003872,4.51557173,2518.1,2518.0,10.36940587]
[1749364004274,5.7054046,2518.1,2518.0,10.36940587]
[1749364004643,4.51737589,2518.1,2518.0,10.36940587]
[1749364005263,5.70731417,2518.1,2518.0,10.36940587]
[1749364005441,4.51737589,2518.1,2518.0,10.36940587]
[1749364007639,4.88941815,2518.1,2518.0,10.36940587]
[1749364007943,4.51737589,2518.1,2518.0,10.36940587]
[1749364008150,4.88942305,2518.1,2518.0,10.36940587]
[1749364008355,22.05742305,2518.1,2518.0,10.36940587]
[1749364008557,22.05744133,2518.1,2518.0,10.36940587]
[1749364009079,21.68537589,2518.1,2518.0,10.36940587]
[1749364009376,22.05744204,2518.1,2518.0,10.36940587]
[1749364009679,22.05744251,2518.1,2518.0,10.36940587]
[1749364009879,23.64100079,2518.1,2518.0,10.36940587]
[1749364010175,22.05744066,2518.1,2518.0,10.36940587]
[1749364010480,23.64119606,2518.1,2518.0,10.36940587]
[1749364010638,23.26893602,2518.1,2518.0,10.36940587]
[1749364010843,23.6412116,2518.1,2518.0,10.36940587]
[1749364011043,23.64121262,2518.1,2518.0,10.36940587]
[1749364011556,23.26893602,2518.1,2518.0,10.36940587]
[1749364011769,23.64121143,2518.1,2518.0,10.36940587]
[1749364012256,23.64121093,2518.1,2518.0,10.36940587]
[1749364012459,23.64139926,2518.1,2518.0,10.36940587]
[1749364012872,23.26893602,2518.1,2518.0,10.36940587]
[1749364015080,23.26893602,2518.1,2518.0,10.36940587]
[1749364015867,23.6414055,2518.1,2518.0,10.36940587]
[1749364016447,23.64140497,2518.1,2518.0,10.36940587]
[1749364016782,23.26893602,2518.1,2518.0,10.36940587]
[1749364017745,23.64140641,2518.1,2518.0,10.36940587]
[1749364018197,21.88450799,2518.1,2518.0,10.36940587]
[1749364019489,22.25700258,2518.1,2518.0,10.36940587]
[1749364020086,21.88450799,2518.1,2518.0,10.36940587]
[1749364021124,22.25700156,2518.1,2518.0,10.36940587]
[1749364021653,22.25699888,2518.1,2518.0,10.36940587]
[1749364022080,22.25699994,2518.1,2518.0,10.36940587]
[1749364022293,21.88450799,2518.1,2518.0,10.36940587]
[1749364022699,22.25699882,2518.1,2518.0,10.36940587]
[1749364022859,22.25699939,2518.1,2518.0,10.36940587]
[1749364023601,22.257001,2518.1,2518.0,10.36940587]
[1749364023777,22.25700164,2518.1,2518.0,10.36940587]
[1749364023959,22.25701437,2518.1,2518.0,10.36940587]
[1749364024164,21.88450799,2518.1,2518.0,10.36940587]
[1749364024699,22.25701013,2518.1,2518.0,10.36940587]
[1749364025386,19.70350799,2518.1,2518.0,10.36940587]
[1749364025590,21.33450799,2518.1,2518.0,10.36940587]
[1749364026374,21.70700684,2518.1,2518.0,10.36940587]
[1749364027312,21.70699754,2518.1,2518.0,10.36940587]
[1749364027487,21.33450799,2518.1,2518.0,10.36940587]
[1749364027987,21.70699533,2518.1,2518.0,10.36940587]
[1749364028185,21.70699596,2518.1,2518.0,10.36940587]
[1749364028712,21.70699629,2518.1,2518.0,10.36940587]
[1749364029075,21.33450799,2518.1,2518.0,10.36940587]
[1749364029583,21.70700685,2518.1,2518.0,10.36940587]
[1749364029788,21.33450799,2518.1,2518.0,10.36940587]
[1749364030012,21.70700754,2518.1,2518.0,10.36940587]
[1749364030714,21.70700323,2518.1,2518.0,10.36940587]
[1749364031217,21.33450799,2518.1,2518.0,10.36940587]
[1749364031873,21.33450799,2518.1,2518.0,6.398]
[1749364032077,24.15950917,2518.1,2518.0,6.398]
[1749364032688,24.15951528,2518.1,2518.0,6.398]
[1749364032874,24.15951363,2518.1,2518.0,6.398]
[1749364033079,23.78701135,2518.1,2518.0,6.398]
[1749364033374,24.15951274,2518.1,2518.0,6.398]
[1749364033576,22.57595331,2518.1,2518.0,6.398]
[1749364033772,24.16527849,2518.1,2518.0,6.398]
[1749364034017,24.16527849,2518.1,2517.9,3.97149053]
[1749364034018,0.7986,2518.0,2517.7,3.97185602]
[1749364034221,2.14396547,2517.9,2517.8,6.398]
[1749364034401,2.14396547,2517.9,2517.7,3.97183801]
[1749364034602,0.95194786,2517.8,2517.7,3.97183801]
[1749364034804,0.95194786,2517.8,2517.7,10.36983801]
[1749364036081,2.14396547,2517.8,2517.7,6.398]
[1749364036491,2.14396547,2517.8,2517.7,10.36987909]
[1749364039899,3.77496547,2517.8,2517.7,10.36987909]
[1749364043192,3.77496547,2517.8,2517.7,6.398]
[1749364044643,4.3912577,2517.8,2517.3,16.7878]
[1749364044805,2.95816547,2517.7,2517.4,10.37033397]
[1749364045008,2.14396547,2517.6,2517.4,10.37033397]
[1749364045207,0.95194786,2517.5,2517.4,3.97233397]
[1749364045430,0.95194786,2517.5,2517.4,10.37033397]
[1749364047239,18.12094786,2517.5,2517.4,10.37033397]
[1749364052329,18.12094786,2517.5,2517.3,3.97244529]
[1749364052524,0.95194786,2517.4,2517.3,3.97244529]
[1749364052725,0.95194786,2517.4,2517.3,10.37044529]
[1749364053454,1.50194786,2517.4,2517.3,3.97244529]
[1749364053667,1.50194786,2517.4,2517.3,10.37044529]
[1749364053959,1.50194786,2517.4,2516.8,4.51321164]
[1749364053960,0.55,2517.2,2517.0,3.97292108]
[1749364054278,0.55,2517.2,2517.1,6.398]
[1749364054452,3.13326132,2517.2,2517.1,6.398]
[1749364055773,3.13326132,2517.2,2517.1,10.37082587]
[1749364055986,3.78655139,2517.2,2517.1,10.37082587]
[1749364059070,3.78655139,2517.2,2517.1,10.37182587]
[1749364059260,3.13326132,2517.2,2517.1,10.37182587]
[1749364064679,2.58326132,2517.2,2517.1,10.37182587]
[1749364070129,0.95226132,2517.2,2517.1,14.88503751]
[1749364070334,1.631,2517.2,2517.1,14.88503751]
[1749364091135,1.631,2517.2,2517.1,13.65441295]
[1749364091336,18.36201761,2517.7,2517.5,3.97219463]
[1749364091540,18.91201761,2517.7,2517.6,10.37003686]
[1749364091752,20.30328855,2517.7,2517.6,10.37003686]
[1749364092263,21.49364333,2517.7,2517.6,10.37003686]
[1749364092468,20.30328855,2517.7,2517.6,10.37003686]
[1749364092768,20.94372787,2517.7,2517.6,10.37003686]
[1749364092958,19.75328855,2517.7,2517.6,10.37003686]
[1749364101437,18.801,2517.7,2517.6,10.37003686]
[1749364101643,19.75272929,2517.7,2517.6,10.37003686]
[1749364101965,19.7527341,2517.7,2517.6,10.37003686]
[1749364102278,18.801,2517.7,2517.6,10.37003686]
[1749364107647,17.17,2517.7,2517.6,10.37003686]
[1749364107874,18.8,2517.7,2517.6,10.37003686]
[1749364112988,1.63,2517.7,2517.6,10.37003686]
[1749364116598,0.8097,2518.0,2517.9,3.9715636]
[1749364116761,5.46730545,2518.0,2517.9,10.3685636]
[1749364118595,6.65678324,2518.0,2517.9,10.3685636]
[1749364121664,1.3048,2517.9,2517.7,3.97181276]
[1749364121906,2.25675199,2517.8,2517.7,3.97181276]
[1749364122070,3.30030411,2517.8,2517.7,10.36881276]
[1749364123021,4.49149773,2517.8,2517.7,10.36881276]
[1749364123224,3.30030411,2517.8,2517.7,10.36881276]
[1749364124096,4.49149773,2517.8,2517.6,3.97194945]
[1749364124421,2.94615966,2517.7,2517.6,3.97194945]
[1749364124587,3.55906652,2517.7,2517.6,10.36894945]
[1749364125190,3.55906652,2517.7,2517.1,19.28192213]
[1749364125191,1.3514,2517.6,2517.0,4.80254135]
[1749364125491,1.3514,2517.6,2517.4,3.97235242]
[1749364125492,0.95356604,2517.5,2517.4,3.97235242]
[1749364125685,0.95356604,2517.5,2517.4,10.36935242]
[1749364125914,1.30947269,2517.5,2517.4,10.36935242]
[1749364127792,0.95356604,2517.5,2517.4,10.36935242]
[1749364129885,2.31746604,2517.5,2517.4,10.36935242]
[1749364130796,2.31746604,2517.5,2517.4,3.97235242]
[1749364130995,2.31746604,2517.5,2517.4,10.36935242]
[1749364135340,0.7799,2517.3,2517.2,3.97260666]
[1749364135541,3.91346604,2517.3,2517.2,3.97260666]
[1749364135741,3.91346604,2517.3,2517.2,10.36960666]
[1749364135944,4.30481264,2517.3,2517.2,10.36960666]
[1749364136636,4.30481264,2517.3,2517.2,10.37060666]
[1749364141844,21.47481264,2517.3,2517.2,10.37060666]
[1749364146376,21.08346604,2517.3,2517.2,10.37060666]
[1749364152225,21.08207927,2517.3,2517.2,10.37060666]
[1749364157459,21.08207927,2517.3,2516.8,0.7813]
[1749364157794,2.69240336,2517.2,2516.6,0.784]
[1749364157932,2.69240336,2517.2,2516.3,3.2835341]
[1749364157933,1.74022409,2517.0,2516.3,0.784]
[1749364158288,0.55,2516.8,2516.6,3.97349006]
[1749364158433,0.55,2516.8,2516.7,6.398]
[1749364158779,3.1327635,2516.8,2516.7,6.398]
[1749364161130,3.1327635,2516.8,2516.5,3.97377172]
[1749364161335,0.55,2516.6,2516.5,3.97377172]
[1749364161561,1.5027635,2516.6,2516.5,10.37177172]
[1749364163888,0.55,2516.7,2516.6,3.97356869]
[1749364164050,1.50137486,2516.7,2516.6,3.97356869]
[1749364165649,1.50124785,2516.7,2516.6,3.97356869]
[1749364177368,1.50124785,2516.7,2516.6,10.37256869]
[1749364181300,18.67724785,2516.7,2516.6,10.37256869]
[1749364184435,19.61799974,2516.7,2516.6,10.37256869]
[1749364184835,0.8177,2516.6,2516.1,0.784]
[1749364185038,0.55,2516.3,2515.9,3.97472077]
[1749364185343,4.1028453,2516.4,2516.1,3.9743965]
[1749364185344,3.59753238,2516.2,2516.1,3.9743965]
[1749364185511,3.13224785,2516.2,2516.1,3.9743965]
[1749364185712,3.13224785,2516.2,2516.1,10.3733965]
[1749364188775,1.50124785,2516.2,2516.1,10.3733965]
[1749364189071,3.13224785,2516.2,2516.1,10.3733965]
[1749364190377,3.13325813,2516.2,2516.1,10.3733965]
[1749364191378,3.13325813,2516.2,2516.1,3.9743965]
[1749364191537,3.13325813,2516.2,2516.1,10.3733965]
[1749364192845,1.50225813,2516.2,2516.1,10.3733965]
[1749364193043,3.13325813,2516.2,2516.1,10.3733965]
[1749364193562,0.95225813,2516.2,2516.1,10.3733965]
[1749364193769,2.58325813,2516.2,2516.1,15.69081881]
[1749364194684,1.631,2516.2,2516.1,15.69081881]
[1749364197574,1.74032267,2516.6,2516.5,3.97377309]
[1749364197765,5.16069574,2516.6,2516.5,10.37377309]
[1749364198083,3.52969574,2516.6,2516.5,10.37377309]
[1749364198280,5.16069574,2516.6,2516.5,10.37377309]
[1749364198669,2.58265347,2516.6,2516.5,10.37377309]
[1749364200353,2.58265347,2516.6,2516.5,6.4]
[1749364200983,2.58265347,2516.6,2516.5,10.37377309]
[1749364207374,0.95165347,2516.6,2516.5,10.37377309]
[1749364207703,2.58265347,2516.6,2516.5,11.14037309]
[1749364214191,1.631,2516.6,2516.5,11.14037309]
[1749364217467,17.176,2516.7,2516.6,3.97361519]
[1749364217684,18.806,2516.7,2516.6,3.97361519]
[1749364239297,18.806,2516.7,2516.6,7.25801412]
[1749364242234,1.63,2516.7,2516.6,7.25801412]
[1749364246445,2.58339152,2516.7,2516.6,7.25801412]
[1749364246747,1.63,2516.7,2516.6,7.25801412]
[1749364247236,2.58348334,2516.7,2516.6,7.25801412]
[1749364247939,1.63,2516.7,2516.6,7.25801412]
[1749364248242,2.58362206,2516.7,2516.6,7.25801412]
[1749364249008,2.58362206,2516.7,2516.6,3.97361519]
[1749364249323,2.58362206,2516.7,2516.6,10.37061519]
[1749364254845,2.58362206,2516.7,2516.6,3.97361519]
[1749364255003,3.72165427,2516.7,2516.6,3.97361519]
[1749364255209,3.72165427,2516.7,2516.6,10.37061519]
[1749364260345,3.38592206,2516.7,2516.6,10.37061519]
[1749364267438,3.38592206,2516.7,2516.6,3.97361519]
[1749364267642,3.38592206,2516.7,2516.6,10.37061519]
[1749364272762,1.75592206,2516.7,2516.6,10.37061519]
[1749364272939,3.38592206,2516.7,2516.6,10.37061519]
[1749364279584,0.7792,2516.5,2516.4,3.97386471]
[1749364279784,0.7792,2516.5,2516.0,3.97441993]
[1749364279785,1.73282206,2516.5,2516.3,3.97399437]
[1749364279992,0.7792,2516.5,2516.4,6.397]
[1749364280187,2.35167815,2516.5,2516.4,6.397]
[1749364281896,2.35167815,2516.5,2516.2,3.97415886]
[1749364282206,3.47285753,2516.4,2516.3,6.397]
[1749364283059,2.28260986,2516.4,2516.3,6.397]
[1749364283288,3.47285753,2516.4,2516.3,6.397]
[1749364283586,4.07819334,2516.4,2516.3,6.397]
[1749364283792,2.88794567,2516.4,2516.3,6.397]
[1749364285879,2.8867367,2516.4,2516.3,6.397]
[1749364286091,2.8867367,2516.4,2516.3,10.37108894]
[1749364288402,2.8867367,2516.4,2516.3,3.97408894]
[1749364288609,2.8867367,2516.4,2516.3,10.37208894]
[1749364292782,0.95220089,2516.4,2516.3,10.37208894]
[1749364293614,2.58220089,2516.4,2516.3,10.37208894]
[1749364297801,3.36440089,2516.4,2516.3,6.398]
[1749364297984,3.91440089,2516.4,2516.3,6.398]
[1749364298897,3.91440089,2516.4,2516.3,10.37208894]
[1749364299395,4.42486609,2516.4,2516.3,10.37208894]
[1749364300588,21.60386609,2516.4,2516.3,10.37208894]
[1749364301227,21.60353326,2516.4,2516.3,10.37208894]
[1749364301427,21.09306806,2516.4,2516.3,10.37208894]
[1749364301729,18.13086806,2516.4,2516.3,10.37208894]
[1749364301929,18.809,2516.4,2516.3,11.20318894]
[1749364302154,18.809,2516.4,2516.3,27.20318894]
[1749364302155,17.179,2516.4,2516.3,27.20318894]
[1749364302290,18.809,2516.4,2516.3,27.20318894]
[1749364303330,18.809,2516.4,2516.3,31.71882446]
[1749364304915,17.179,2516.4,2516.3,31.71882446]
[1749364305131,18.809,2516.4,2516.3,31.71882446]
[1749364307828,17.179,2516.4,2516.3,31.71882446]
[1749364308024,18.809,2516.4,2516.3,31.71882446]
[1749364310990,18.808,2516.4,2516.3,31.71882446]
[1749364314647,17.179,2516.4,2516.3,31.71882446]
[1749364315001,0.8099,2517.3,2516.3,27.74473552]
[1749364315211,0.8099,2517.3,2517.2,3.97266804]
[1749364315509,3.38920464,2517.3,2517.2,10.36866804]
[1749364316105,1.76020464,2517.3,2517.2,10.36866804]
[1749364316313,3.38920464,2517.3,2517.2,10.36866804]
[1749364317554,2.57930464,2517.3,2517.2,10.36866804]
[1749364317705,1.629,2517.3,2517.2,31.69290356]
[1749364322554,17.176,2517.4,2517.3,19.97251022]
[1749364322756,18.805,2517.4,2517.3,19.97251022]
[1749364323104,18.805,2517.4,2517.3,20.77591022]
[1749364323308,18.805,2517.4,2517.3,27.17091022]
[1749364323611,17.176,2517.4,2517.3,27.17091022]
[1749364323927,18.805,2517.4,2517.3,27.17091022]
[1749364335224,1.629,2517.4,2517.3,27.17091022]
[1749364340835,17.9323,2518.2,2518.1,3.97124816]
[1749364341021,20.50937481,2518.2,2518.1,10.36424816]
[1749364346158,20.5116477,2518.2,2518.1,10.36424816]
[1749364351657,20.5116477,2518.2,2518.1,6.393]
[1749364351872,24.02985123,2518.2,2518.1,10.36424816]
[1749364354051,24.02985123,2518.2,2518.1,3.97124816]
[1749364354391,0.8106,2518.0,2517.4,16.0]
[1749364354599,1.7619477,2517.9,2517.8,3.97170911]
[1749364354743,1.7619477,2517.9,2517.8,10.36370911]
[1749364354945,2.05728307,2517.9,2517.8,10.36370911]
[1749364355503,2.05728307,2517.9,2517.8,6.392]
[1749364355699,3.24868911,2517.9,2517.8,6.392]
[1749364357044,2.05728307,2517.9,2517.8,6.392]
[1749364357273,3.24868911,2517.9,2517.8,6.392]
[1749364357578,2.05728307,2517.9,2517.8,6.392]
[1749364357782,3.24868911,2517.9,2517.8,6.392]
[1749364357985,2.05728307,2517.9,2517.8,6.392]
[1749364358777,2.05863903,2517.9,2517.8,6.392]
[1749364358942,2.60863903,2517.9,2517.5,3.97204561]
[1749364359148,1.27765552,2517.8,2517.6,10.36396063]
[1749364359459,1.76330366,2517.7,2517.6,10.36396063]
[1749364362585,1.76330366,2517.7,2517.6,3.97196063]
[1749364362879,1.76330366,2517.7,2517.6,10.36496063]
[1749364364974,1.76330366,2517.7,2517.6,3.97196063]
[1749364365162,2.12075071,2517.7,2517.6,10.36496063]
[1749364366190,2.12075071,2517.7,2517.6,3.97196063]
[1749364366481,2.12075071,2517.7,2517.6,10.36496063]
[1749364370093,3.74875071,2517.7,2517.6,10.36496063]
[1749364371912,1.31015071,2517.7,2517.6,10.36496063]
[1749364372114,2.58070366,2517.7,2517.6,10.36496063]
[1749364385816,3.77158324,2517.7,2517.6,10.36496063]
[1749364386465,3.77158324,2517.7,2517.6,6.393]
[1749364386622,0.8325,2517.6,2517.2,16.0]
[1749364386956,0.8325,2517.6,2517.1,3.28216314]
[1749364386957,0.95270366,2517.5,2517.4,3.97225481]
[1749364387246,1.41311198,2517.5,2517.2,3.97258398]
[1749364387554,0.8315,2517.3,2516.9,3.97309914]
[1749364387728,0.95270366,2517.2,2516.9,3.97309914]
[1749364387926,3.70971198,2517.1,2516.3,8.05030232]
[1749364388236,0.95270366,2517.0,2516.9,3.97314156]
[1749364388416,0.95270366,2517.0,2516.9,10.36614156]
[1749364388615,0.95270366,2517.0,2516.9,13.6483047]
[1749364388814,2.58070366,2517.0,2516.9,13.6483047]
[1749364389133,1.628,2517.0,2516.9,13.6483047]
[1749364389324,2.58035014,2517.0,2516.9,10.36614156]
[1749364389506,1.628,2517.0,2516.9,10.36614156]
[1749364393714,0.7996,2517.3,2517.2,3.97266804]
[1749364393914,3.67916183,2517.3,2517.2,10.36666804]
[1749364394350,3.67916183,2517.3,2517.2,6.394]
[1749364395552,2.05116183,2517.3,2517.2,6.394]
[1749364395848,3.67916183,2517.3,2517.2,6.394]
[1749364396049,0.55,2517.2,2516.7,3.97331906]
[1749364396255,0.55,2517.0,2516.8,3.97322455]
[1749364396451,0.55,2517.0,2516.9,6.394]
[1749364396614,1.50125605,2517.0,2516.9,6.394]
[1749364397115,1.50125605,2517.0,2516.9,10.36714156]
[1749364397816,1.628,2517.0,2516.9,10.36714156]
[1749364401250,0.7866,2517.3,2517.1,3.97274568]
[1749364401449,2.57894869,2517.2,2517.1,3.97274568]
[1749364401753,2.57894869,2517.2,2517.1,10.36774568]
[1749364409450,0.7724,2517.1,2517.0,3.97292293]
[1749364409651,1.72334869,2517.1,2517.0,10.36692293]
[1749364414097,1.72334869,2517.1,2516.9,3.97305783]
[1749364414255,1.3224,2517.1,2517.0,6.394]
[1749364414458,2.27461778,2517.1,2517.0,6.394]
[1749364415755,0.55,2517.0,2516.9,3.97311602]
[1749364415955,2.01135251,2517.0,2516.9,10.36811602]
[1749364416393,2.01199182,2517.0,2516.9,10.36811602]
[1749364417466,2.01199182,2517.0,2516.9,6.395]
[1749364417672,2.01199182,2517.0,2516.8,3.97326516]
[1749364417876,1.05913473,2517.0,2516.9,6.394]
[1749364418070,2.01255612,2517.0,2516.9,6.394]
[1749364418777,2.77135612,2517.0,2516.9,6.394]